Publisher Label,Publisher URI,"Organisational Unit","Beneficiary Name","Payment Date","Amount","Irrecoverable VAT Amount","Purpose","Proclass Code"
"Wolverhampton City Council","http://opendatacommunities.org/id/metropolitan-district-council/wolverhampton","Investments","Trainline.com","06/01/15",158.1,0,"Public Transport",4112
"Wolverhampton City Council","http://opendatacommunities.org/id/metropolitan-district-council/wolverhampton","Investments","London Underground","08/01/15",50,0,"Public Transport",4112
"Wolverhampton City Council","http://opendatacommunities.org/id/metropolitan-district-council/wolverhampton","Investments","Virgintrains.co.uk","02/02/15",230,0,"Public Transport",4112
"Wolverhampton City Council","http://opendatacommunities.org/id/metropolitan-district-council/wolverhampton","Investments","Virgintrains.co.uk","14/01/15",65.2,0,"Public Transport",4112
"Wolverhampton City Council","http://opendatacommunities.org/id/metropolitan-district-council/wolverhampton","Investments","Pumpkin Caf�","21/01/15",3.58,0,"Subsistence",5812
"Wolverhampton City Council","http://opendatacommunities.org/id/metropolitan-district-council/wolverhampton","Investments","Pumpkin Caf�","21/01/15",1.45,0,"Subsistence",5812
"Wolverhampton City Council","http://opendatacommunities.org/id/metropolitan-district-council/wolverhampton","Investments","West Coast Trains","21/01/15",6.67,0,"Parking Fees",4112
"Wolverhampton City Council","http://opendatacommunities.org/id/metropolitan-district-council/wolverhampton","Governance","Ryman","23/01/15",4.49,0,"Stationery",5943
"Wolverhampton City Council","http://opendatacommunities.org/id/metropolitan-district-council/wolverhampton","Governance","Talk Talk Business","26/01/15",60.04,0,"Computing - Internet",4816
"Wolverhampton City Council","http://opendatacommunities.org/id/metropolitan-district-council/wolverhampton","Governance","Paxton Access","26/01/15",111,0,"Computing - Purchase of Hardware",5045
"Wolverhampton City Council","http://opendatacommunities.org/id/metropolitan-district-council/wolverhampton","Governance","ISSUU Publishing","27/01/15",12.85,0,"Computing - Internet",2741
"Wolverhampton City Council","http://opendatacommunities.org/id/metropolitan-district-council/wolverhampton","Governance","West Coast Trains","29/01/15",85,0,"Public Transport",4112
"Wolverhampton City Council","http://opendatacommunities.org/id/metropolitan-district-council/wolverhampton","Executive","West Coast Trains","08/01/15",4.95,0,"Public Transport",4112
"Wolverhampton City Council","http://opendatacommunities.org/id/metropolitan-district-council/wolverhampton","Executive","London Underground","08/01/15",50,0,"Public Transport",4112
"Wolverhampton City Council","http://opendatacommunities.org/id/metropolitan-district-council/wolverhampton","Executive","Costa Coffee","14/01/15",3.33,0,"Subsistence",5813
"Wolverhampton City Council","http://opendatacommunities.org/id/metropolitan-district-council/wolverhampton","Executive","Barrierline","21/01/15",4.82,0,"Subsistence",5812
"Wolverhampton City Council","http://opendatacommunities.org/id/metropolitan-district-council/wolverhampton","Investments","Tesco","08/01/15",2.3,0,"Subsistence",5411
"Wolverhampton City Council","http://opendatacommunities.org/id/metropolitan-district-council/wolverhampton","Investments","Greggs","08/01/15",22,0,"Subsistence",5812
"Wolverhampton City Council","http://opendatacommunities.org/id/metropolitan-district-council/wolverhampton","Investments","Costa Coffee","15/01/15",4.35,0,"Subsistence",5813
"Wolverhampton City Council","http://opendatacommunities.org/id/metropolitan-district-council/wolverhampton","Investments","Virgintrains.co.uk","19/01/15",76.8,0,"Public Transport",4112
"Wolverhampton City Council","http://opendatacommunities.org/id/metropolitan-district-council/wolverhampton","Investments","Trainline.com","13/01/15",102,0,"Public Transport",4112
"Wolverhampton City Council","http://opendatacommunities.org/id/metropolitan-district-council/wolverhampton","Investments","Central Taxis","14/01/15",30,0,"Public Transport",4121
"Wolverhampton City Council","http://opendatacommunities.org/id/metropolitan-district-council/wolverhampton","Investments","Eat Ltd","14/01/15",8.33,0,"Subsistence",5812
"Wolverhampton City Council","http://opendatacommunities.org/id/metropolitan-district-council/wolverhampton","Investments","Leon Restaurants","14/01/15",5.65,0,"Subsistence",5812
"Wolverhampton City Council","http://opendatacommunities.org/id/metropolitan-district-council/wolverhampton","Investments","West Coast Trains","14/01/15",34.9,0,"Public Transport",4112
"Wolverhampton City Council","http://opendatacommunities.org/id/metropolitan-district-council/wolverhampton","Investments","The Real Greek","14/01/15",26.63,0,"Subsistence",5812
"Wolverhampton City Council","http://opendatacommunities.org/id/metropolitan-district-council/wolverhampton","Investments","Central Taxis","19/01/15",30,0,"Public Transport",4121
"Wolverhampton City Council","http://opendatacommunities.org/id/metropolitan-district-council/wolverhampton","Investments","Sainsburys","20/01/15",9.3,0,"Subsistence",5411
"Wolverhampton City Council","http://opendatacommunities.org/id/metropolitan-district-council/wolverhampton","Investments","Trainline.com","19/01/15",131.38,0,"Public Transport",4112
"Wolverhampton City Council","http://opendatacommunities.org/id/metropolitan-district-council/wolverhampton","Investments","Premier Inn","19/01/15",115.83,0,"Accomodation Costs",7011
"Wolverhampton City Council","http://opendatacommunities.org/id/metropolitan-district-council/wolverhampton","Investments","Pumpkin Caf�","20/01/15",2.21,0,"Subsistence",5812
"Wolverhampton City Council","http://opendatacommunities.org/id/metropolitan-district-council/wolverhampton","Investments","Pumpkin Caf�","20/01/15",3.45,0,"Subsistence",5812
"Wolverhampton City Council","http://opendatacommunities.org/id/metropolitan-district-council/wolverhampton","Investments","Japanese Canteen","21/01/15",4.95,0,"Subsistence",5812
"Wolverhampton City Council","http://opendatacommunities.org/id/metropolitan-district-council/wolverhampton","Investments","Trainline.com","28/01/15",120.36,0,"Public Transport",4112
"Wolverhampton City Council","http://opendatacommunities.org/id/metropolitan-district-council/wolverhampton","Investments","Crussh Juice Bar","29/01/15",3.29,0,"Subsistence",5813
"Wolverhampton City Council","http://opendatacommunities.org/id/metropolitan-district-council/wolverhampton","Investments","Crussh Juice Bar","29/01/15",7,0,"Subsistence",5813
"Wolverhampton City Council","http://opendatacommunities.org/id/metropolitan-district-council/wolverhampton","Investments","Taylor St Baristas","29/01/15",5.6,0,"Subsistence",5813
"Wolverhampton City Council","http://opendatacommunities.org/id/metropolitan-district-council/wolverhampton","Investments","Costa Coffee","29/01/15",2,0,"Subsistence",5813
"Wolverhampton City Council","http://opendatacommunities.org/id/metropolitan-district-council/wolverhampton","Investments","Carluccios Ltd","29/01/15",13.59,0,"Subsistence",5812
"Wolverhampton City Council","http://opendatacommunities.org/id/metropolitan-district-council/wolverhampton","Investments","Carluccios Ltd","29/01/15",2,0,"Subsistence",5812
"Wolverhampton City Council","http://opendatacommunities.org/id/metropolitan-district-council/wolverhampton","Investments","Pumpkin Caf�","29/01/15",2,0,"Subsistence",5812
"Wolverhampton City Council","http://opendatacommunities.org/id/metropolitan-district-council/wolverhampton","Investments","Pumpkin Caf�","29/01/15",2.21,0,"Subsistence",5812
"Wolverhampton City Council","http://opendatacommunities.org/id/metropolitan-district-council/wolverhampton","Investments","Pumpkin Caf�","14/01/15",4.65,0,"Subsistence",5812
"Wolverhampton City Council","http://opendatacommunities.org/id/metropolitan-district-council/wolverhampton","Investments","London Underground","21/01/15",4.8,0,"Public Transport",4112
"Wolverhampton City Council","http://opendatacommunities.org/id/metropolitan-district-council/wolverhampton","Investments","Eat","21/01/15",2.15,0,"Subsistence",5812
"Wolverhampton City Council","http://opendatacommunities.org/id/metropolitan-district-council/wolverhampton","Investments","London Underground","29/01/15",5,0,"Public Transport",4112
"Wolverhampton City Council","http://opendatacommunities.org/id/metropolitan-district-council/wolverhampton","Investments","Central Taxis","29/01/15",23,0,"Public Transport",4121
"Wolverhampton City Council","http://opendatacommunities.org/id/metropolitan-district-council/wolverhampton","Governance","PMG Ltd","06/01/15",445,0,"Training",8299
"Wolverhampton City Council","http://opendatacommunities.org/id/metropolitan-district-council/wolverhampton","Governance","Office Depot","07/01/15",184.19,0,"Stationery",5943
"Wolverhampton City Council","http://opendatacommunities.org/id/metropolitan-district-council/wolverhampton","Governance","Office Depot","08/01/15",4.95,0,"Stationery",5943
"Wolverhampton City Council","http://opendatacommunities.org/id/metropolitan-district-council/wolverhampton","Pensions Operations","Durham County Council","08/01/15",10.23,0,"Publications",9399
"Wolverhampton City Council","http://opendatacommunities.org/id/metropolitan-district-council/wolverhampton","Pensions Operations","Durham County Council","08/01/15",1.25,0,"Publications",9399
"Wolverhampton City Council","http://opendatacommunities.org/id/metropolitan-district-council/wolverhampton","Pensions Operations","GRO HM Passport Office","17/12/14",-9.25,0,"Publications",9399
"Wolverhampton City Council","http://opendatacommunities.org/id/metropolitan-district-council/wolverhampton","Pensions Operations","Virgintrains.co.uk","12/01/15",354,0,"Public Transport",4112
"Wolverhampton City Council","http://opendatacommunities.org/id/metropolitan-district-council/wolverhampton","Pensions Operations","Staffordshire County Council","13/01/15",10,0,"Publications",9399
"Wolverhampton City Council","http://opendatacommunities.org/id/metropolitan-district-council/wolverhampton","Pensions Operations","Virgintrains.co.uk","13/01/15",140.4,0,"Public Transport",4112
"Wolverhampton City Council","http://opendatacommunities.org/id/metropolitan-district-council/wolverhampton","Pensions Operations","Virgintrains.co.uk","13/01/15",230.6,0,"Public Transport",4112
"Wolverhampton City Council","http://opendatacommunities.org/id/metropolitan-district-council/wolverhampton","Pensions Operations","Birmingham Council","14/01/15",12,0,"Publications",9399
"Wolverhampton City Council","http://opendatacommunities.org/id/metropolitan-district-council/wolverhampton","Pensions Operations","Staffordshire County Council","14/01/15",-10,0,"Publications",0
"Wolverhampton City Council","http://opendatacommunities.org/id/metropolitan-district-council/wolverhampton","Pensions Operations","Birmingham Council","14/01/15",-10,0,"Publications",9399
"Wolverhampton City Council","http://opendatacommunities.org/id/metropolitan-district-council/wolverhampton","Financial Services","Kaplan","15/01/15",95.6,0,"Training",9399
"Wolverhampton City Council","http://opendatacommunities.org/id/metropolitan-district-council/wolverhampton","Pensions Operations","GRO HM Passport Office","16/01/15",9.25,0,"Publications",9399
"Wolverhampton City Council","http://opendatacommunities.org/id/metropolitan-district-council/wolverhampton","Governance","Office Depot","19/01/15",220.92,0,"Stationery",5943
"Wolverhampton City Council","http://opendatacommunities.org/id/metropolitan-district-council/wolverhampton","Governance","Office Depot","19/01/15",1.13,0,"Stationery",5943
"Wolverhampton City Council","http://opendatacommunities.org/id/metropolitan-district-council/wolverhampton","Executive","Virgintrains.co.uk","19/01/15",153.5,0,"Public Transport",4112
"Wolverhampton City Council","http://opendatacommunities.org/id/metropolitan-district-council/wolverhampton","Governance","Virgintrains.co.uk","23/01/15",152,0,"Public Transport",4112
"Wolverhampton City Council","http://opendatacommunities.org/id/metropolitan-district-council/wolverhampton","Pensions Operations","Pret A Manger","13/01/15",2.49,0,"Subsistence",5812
"Wolverhampton City Council","http://opendatacommunities.org/id/metropolitan-district-council/wolverhampton","Pensions Operations","Pret A Manger","13/01/15",4.9,0,"Subsistence",5812
"Wolverhampton City Council","http://opendatacommunities.org/id/metropolitan-district-council/wolverhampton","Pensions Operations","West Coast Trains","15/01/15",3.4,0,"Public Transport",4112
"Wolverhampton City Council","http://opendatacommunities.org/id/metropolitan-district-council/wolverhampton","Pensions Operations","London Underground","15/01/15",19.2,0,"Public Transport",4112
"Wolverhampton City Council","http://opendatacommunities.org/id/metropolitan-district-council/wolverhampton","Pensions Operations","Ritazza Food Court","15/01/15",4,0,"Subsistence",5812
"Wolverhampton City Council","http://opendatacommunities.org/id/metropolitan-district-council/wolverhampton","Pensions Operations","Caf� Ritazza","20/01/15",2.8,0,"Subsistence",5812
"Wolverhampton City Council","http://opendatacommunities.org/id/metropolitan-district-council/wolverhampton","Pensions Operations","Pumpkin Caf�","27/01/15",4.65,0,"Subsistence",5812
"Wolverhampton City Council","http://opendatacommunities.org/id/metropolitan-district-council/wolverhampton","Governance","Tesco","29/01/15",10.89,0,"Subsistence",5411
"Wolverhampton City Council","http://opendatacommunities.org/id/metropolitan-district-council/wolverhampton","Governance","Trainline.com","28/01/15",-90,0,"Public Transport",4112
"Wolverhampton City Council","http://opendatacommunities.org/id/metropolitan-district-council/wolverhampton","Investments","dialacab.co.uk","05/01/15",26.18,0,"Public Transport",4121
"Wolverhampton City Council","http://opendatacommunities.org/id/metropolitan-district-council/wolverhampton","Investments","Caffe Nero","05/01/15",6.58,0,"Subsistence",5813
"Wolverhampton City Council","http://opendatacommunities.org/id/metropolitan-district-council/wolverhampton","Investments","Caffe Nero","05/01/15",1.8,0,"Subsistence",5813
"Wolverhampton City Council","http://opendatacommunities.org/id/metropolitan-district-council/wolverhampton","Investments","Taxis-G7","05/01/15",11.98,0,"Public Transport",4121
"Wolverhampton City Council","http://opendatacommunities.org/id/metropolitan-district-council/wolverhampton","Investments","Chez Andre","05/01/15",39.16,0,"Subsistence",4812
"Wolverhampton City Council","http://opendatacommunities.org/id/metropolitan-district-council/wolverhampton","Investments","Taxi Botelho","06/01/15",19.83,0,"Public Transport",4121
"Wolverhampton City Council","http://opendatacommunities.org/id/metropolitan-district-council/wolverhampton","Investments","Taxis-G7","06/01/15",14.44,0,"Public Transport",4121
"Wolverhampton City Council","http://opendatacommunities.org/id/metropolitan-district-council/wolverhampton","Investments","Taxis Bleus 4","06/01/15",11.24,0,"Public Transport",4121
"Wolverhampton City Council","http://opendatacommunities.org/id/metropolitan-district-council/wolverhampton","Investments","King David","06/01/15",11.88,0,"Subsistence",5812
"Wolverhampton City Council","http://opendatacommunities.org/id/metropolitan-district-council/wolverhampton","Investments","Chez Andre","06/01/15",40.14,0,"Subsistence",5812
"Wolverhampton City Council","http://opendatacommunities.org/id/metropolitan-district-council/wolverhampton","Investments","Caf� Bacquie","07/01/15",7.3,0,"Subsistence",5812
"Wolverhampton City Council","http://opendatacommunities.org/id/metropolitan-district-council/wolverhampton","Investments","Menu Membre","07/01/15",30.47,0,"Subsistence",5812
"Wolverhampton City Council","http://opendatacommunities.org/id/metropolitan-district-council/wolverhampton","Investments","Verifone Taxi","08/01/15",50.16,0,"Public Transport",4121
"Wolverhampton City Council","http://opendatacommunities.org/id/metropolitan-district-council/wolverhampton","Investments","Momentum Services LTD","08/01/15",14.1,0,"Subsistence",5812
"Wolverhampton City Council","http://opendatacommunities.org/id/metropolitan-district-council/wolverhampton","Investments","Hotel Francois","08/01/15",471.45,0,"Accomodation Costs",7011
"Wolverhampton City Council","http://opendatacommunities.org/id/metropolitan-district-council/wolverhampton","Investments","Taxis-G7","08/01/15",13.62,0,"Public Transport",4121
"Wolverhampton City Council","http://opendatacommunities.org/id/metropolitan-district-council/wolverhampton","Investments","Taxis-G7","08/01/15",12,0,"Public Transport",4121
"Wolverhampton City Council","http://opendatacommunities.org/id/metropolitan-district-council/wolverhampton","Investments","London & South Eas","09/01/15",50,0,"Public Transport",4112
"Wolverhampton City Council","http://opendatacommunities.org/id/metropolitan-district-council/wolverhampton","Investments","West Coast Trains","16/01/15",5.6,0,"Public Transport",4112
"Wolverhampton City Council","http://opendatacommunities.org/id/metropolitan-district-council/wolverhampton","Investments","Taxi Sen Sales","07/01/15",50.19,0,"Public Transport",4121
"Wolverhampton City Council","http://opendatacommunities.org/id/metropolitan-district-council/wolverhampton","Financial Services","London Underground","13/01/15",4.8,0,"Public Transport",4112
"Wolverhampton City Council","http://opendatacommunities.org/id/metropolitan-district-council/wolverhampton","Financial Services","London Underground","14/01/15",9.6,0,"Public Transport",4112
"Wolverhampton City Council","http://opendatacommunities.org/id/metropolitan-district-council/wolverhampton","Financial Services","Eat Ltd","14/01/15",5.24,0,"Subsistence",5812
"Wolverhampton City Council","http://opendatacommunities.org/id/metropolitan-district-council/wolverhampton","Financial Services","Eat Ltd","14/01/15",6.78,0,"Subsistence",5812
"Wolverhampton City Council","http://opendatacommunities.org/id/metropolitan-district-council/wolverhampton","Financial Services","Eat Ltd","14/01/15",1.65,0,"Subsistence",5812
"Wolverhampton City Council","http://opendatacommunities.org/id/metropolitan-district-council/wolverhampton","Financial Services","First Great Western","14/01/15",12,0,"Public Transport",5812
"Wolverhampton City Council","http://opendatacommunities.org/id/metropolitan-district-council/wolverhampton","Financial Services","West Coast Trains","14/01/15",5.95,0,"Public Transport",4112
"Wolverhampton City Council","http://opendatacommunities.org/id/metropolitan-district-council/wolverhampton","Governance","West Coast Trains","08/01/15",474.7,0,"Public Transport",4112
"Wolverhampton City Council","http://opendatacommunities.org/id/metropolitan-district-council/wolverhampton","Governance","London Underground","12/01/15",12,0,"Public Transport",4112
"Wolverhampton City Council","http://opendatacommunities.org/id/metropolitan-district-council/wolverhampton","Governance","West Coast Trains","12/01/15",6.67,0,"Public Transport",4112
"Wolverhampton City Council","http://opendatacommunities.org/id/metropolitan-district-council/wolverhampton","Governance","West Coast Trains","12/01/15",6.67,0,"Public Transport",4112
"Wolverhampton City Council","http://opendatacommunities.org/id/metropolitan-district-council/wolverhampton","Governance","West Coast Trains","13/01/15",56.3,0,"Public Transport",4112
"Wolverhampton City Council","http://opendatacommunities.org/id/metropolitan-district-council/wolverhampton","Governance","West Coast Trains","13/01/15",6.67,0,"Public Transport",4112
"Wolverhampton City Council","http://opendatacommunities.org/id/metropolitan-district-council/wolverhampton","Governance","West Coast Trains","19/01/15",230,0,"Public Transport",4112
"Wolverhampton City Council","http://opendatacommunities.org/id/metropolitan-district-council/wolverhampton","Governance","West Coast Trains","19/01/15",177,0,"Public Transport",4112
"Wolverhampton City Council","http://opendatacommunities.org/id/metropolitan-district-council/wolverhampton","Governance","West Coast Trains","19/01/15",6.67,0,"Public Transport",4112
"Wolverhampton City Council","http://opendatacommunities.org/id/metropolitan-district-council/wolverhampton","Governance","West Coast Trains","20/01/15",6.67,0,"Public Transport",4112
"Wolverhampton City Council","http://opendatacommunities.org/id/metropolitan-district-council/wolverhampton","Governance","London Underground","21/01/15",9.6,0,"Public Transport",4112
"Wolverhampton City Council","http://opendatacommunities.org/id/metropolitan-district-council/wolverhampton","Governance","West Coast Trains","21/01/15",6.67,0,"Public Transport",4112
"Wolverhampton City Council","http://opendatacommunities.org/id/metropolitan-district-council/wolverhampton","Governance","CIPFA","29/01/15",100,0,"Training",8299
